[Event "Betsys MČR v online bleskovém šachu 2021"]
[Site "Chess.com"]
[Date "2021.04.17"]
[Round "9"]
[White "kecalk"]
[Black "CZMaster666"]
[Result "1-0"]
[WhiteElo "2151"]
[BlackElo "1918"]
[TimeControl "180+1"]
[EndTime "10:30:46 PDT"]
[Termination "Uživatel kecalk zvítězil na čas"]

1. c4 {[%clk 0:03:00.9]} 1... e5 {[%clk 0:02:59.4]} 2. Nc3 {[%clk 0:02:56.7]}
2... Nf6 {[%clk 0:02:58.8]} 3. Nf3 {[%clk 0:02:56.6]} 3... Nc6 {[%clk
0:02:58.2]} 4. e3 {[%clk 0:02:55.7]} 4... d5 {[%clk 0:02:52.8]} 5. cxd5 {[%clk
0:02:50.2]} 5... Nxd5 {[%clk 0:02:53.7]} 6. Bb5 {[%clk 0:02:51.1]} 6... Nxc3
{[%clk 0:02:45.9]} 7. bxc3 {[%clk 0:02:52]} 7... Bd6 {[%clk 0:02:44.8]} 8. d4
{[%clk 0:02:51.8]} 8... exd4 {[%clk 0:02:43.8]} 9. cxd4 {[%clk 0:02:50.4]} 9...
Bd7 {[%clk 0:02:44.2]} 10. O-O {[%clk 0:02:49]} 10... O-O {[%clk 0:02:42.7]} 11.
e4 {[%clk 0:02:43.1]} 11... Bg4 {[%clk 0:02:38.7]} 12. Bxc6 {[%clk 0:02:39.3]}
12... bxc6 {[%clk 0:02:37.3]} 13. h3 {[%clk 0:02:34.6]} 13... Bh5 {[%clk
0:02:33.6]} 14. Qd3 {[%clk 0:02:28.4]} 14... Bb4 {[%clk 0:02:28.8]} 15. Ne5
{[%clk 0:02:20.2]} 15... c5 {[%clk 0:02:20.2]} 16. Nc6 {[%clk 0:02:07.4]} 16...
Qd7 {[%clk 0:02:18.7]} 17. Nxb4 {[%clk 0:02:06.8]} 17... cxb4 {[%clk 0:02:19.6]}
18. Be3 {[%clk 0:01:49]} 18... f5 {[%clk 0:02:10]} 19. exf5 {[%clk 0:01:46.1]}
19... Rxf5 {[%clk 0:02:05.6]} 20. Qc4+ {[%clk 0:01:34.1]} 20... Kh8 {[%clk
0:01:55]} 21. Qxb4 {[%clk 0:01:33.7]} 21... Raf8 {[%clk 0:01:52.3]} 22. Rac1
{[%clk 0:01:24.6]} 22... Bf3 {[%clk 0:01:34]} 23. gxf3 {[%clk 0:01:14.5]} 23...
Rxf3 {[%clk 0:01:34]} 24. Rc5 {[%clk 0:01:09.7]} 24... Qxh3 {[%clk 0:01:23]} 25.
Rg5 {[%clk 0:01:05.3]} 25... h6 {[%clk 0:01:13.1]} 26. Rg2 {[%clk 0:01:00.7]}
26... Qh4 {[%clk 0:00:31.7]} 27. Re1 {[%clk 0:00:44.2]} 27... Kh7 {[%clk
0:00:28.6]} 28. a3 {[%clk 0:00:41.2]} 28... Rh3 {[%clk 0:00:26.4]} 29. Kf1
{[%clk 0:00:30]} 29... Re8 {[%clk 0:00:18.9]} 30. Qb1+ {[%clk 0:00:23.7]} 30...
Kh8 {[%clk 0:00:14.7]} 31. Qd3 {[%clk 0:00:20.2]} 31... Qh5 {[%clk 0:00:12.2]}
32. Rg1 {[%clk 0:00:17.9]} 32... Rf3 {[%clk 0:00:08.9]} 33. Qg6 {[%clk
0:00:16.6]} 33... Qh3+ {[%clk 0:00:07.1]} 34. Qg2 {[%clk 0:00:16.4]} 34... Rxf2+
{[%clk 0:00:03.9]} 35. Kxf2 {[%clk 0:00:13.9]} 1-0

[Event "Betsys MČR v online bleskovém šachu 2021"]
[Site "Chess.com"]
[Date "2021.04.17"]
[Round "9"]
[White "VeceraP1973"]
[Black "petr812"]
[Result "1-0"]
[WhiteElo "1933"]
[BlackElo "2111"]
[TimeControl "180+1"]
[EndTime "10:30:46 PDT"]
[Termination "Uživatel VeceraP1973 zvítězil na čas"]

1. e4 {[%clk 0:03:00.9]} 1... e6 {[%clk 0:02:57.7]} 2. d4 {[%clk 0:03:00.3]}
2... d5 {[%clk 0:02:57.7]} 3. Nc3 {[%clk 0:03:00.1]} 3... Nf6 {[%clk 0:02:55.9]}
4. e5 {[%clk 0:02:58]} 4... Nfd7 {[%clk 0:02:52.2]} 5. Nf3 {[%clk 0:02:58.4]}
5... c5 {[%clk 0:02:51.7]} 6. dxc5 {[%clk 0:02:58.5]} 6... Bxc5 {[%clk
0:02:50.1]} 7. Bd3 {[%clk 0:02:57.6]} 7... Nc6 {[%clk 0:02:49.3]} 8. Bf4 {[%clk
0:02:56.9]} 8... b6 {[%clk 0:02:40.5]} 9. O-O {[%clk 0:02:56.1]} 9... Bb7 {[%clk
0:02:39.5]} 10. a3 {[%clk 0:02:53.4]} 10... Be7 {[%clk 0:02:34.5]} 11. Re1
{[%clk 0:02:49.9]} 11... O-O {[%clk 0:02:32.8]} 12. h4 {[%clk 0:02:37.5]} 12...
Nc5 {[%clk 0:02:28.9]} 13. Bxh7+ {[%clk 0:02:32.9]} 13... Kxh7 {[%clk
0:02:21.4]} 14. Ng5+ {[%clk 0:02:32.2]} 14... Bxg5 {[%clk 0:02:05.8]} 15. Bxg5
{[%clk 0:02:07.2]} 15... Qe8 {[%clk 0:02:04.3]} 16. Qh5+ {[%clk 0:02:05.8]}
16... Kg8 {[%clk 0:02:03.2]} 17. Bf6 {[%clk 0:02:04.8]} 17... Ne7 {[%clk
0:01:20.2]} 18. Qg5 {[%clk 0:01:46.7]} 18... Ng6 {[%clk 0:01:17.8]} 19. h5
{[%clk 0:01:44.1]} 19... gxf6 {[%clk 0:00:31.9]} 20. exf6 {[%clk 0:01:41.5]}
20... Nd7 {[%clk 0:00:30.4]} 21. hxg6 {[%clk 0:01:23.8]} 21... fxg6 {[%clk
0:00:28.6]} 22. Rxe6 {[%clk 0:01:14.2]} 22... Qf7 {[%clk 0:00:26.8]} 23. Re7
{[%clk 0:00:54.7]} 23... Qxf6 {[%clk 0:00:24]} 24. Qxf6 {[%clk 0:00:54.6]} 24...
Nxf6 {[%clk 0:00:22.5]} 25. Rxb7 {[%clk 0:00:53.9]} 25... d4 {[%clk 0:00:22]}
26. Ne2 {[%clk 0:00:51.5]} 26... Rfd8 {[%clk 0:00:20.4]} 27. Rd1 {[%clk
0:00:49.9]} 27... Rac8 {[%clk 0:00:19.6]} 28. Rxd4 {[%clk 0:00:42.8]} 28... Re8
{[%clk 0:00:17.2]} 29. Nc3 {[%clk 0:00:39.7]} 29... Re1+ {[%clk 0:00:14]} 30.
Kh2 {[%clk 0:00:38.9]} 30... Rc1 {[%clk 0:00:14]} 31. Rf4 {[%clk 0:00:34.1]}
31... Rf8 {[%clk 0:00:11.7]} 32. g3 {[%clk 0:00:25.6]} 32... Rxc2 {[%clk
0:00:11.7]} 33. Kg2 {[%clk 0:00:24]} 33... g5 {[%clk 0:00:11.3]} 34. Rd4 {[%clk
0:00:21.8]} 34... Rf7 {[%clk 0:00:11.4]} 35. Rxf7 {[%clk 0:00:20.9]} 35... Kxf7
{[%clk 0:00:11.2]} 36. Rb4 {[%clk 0:00:20.7]} 36... Ke7 {[%clk 0:00:08.7]} 37.
Rb5 {[%clk 0:00:19.8]} 37... g4 {[%clk 0:00:07.8]} 38. Nd5+ {[%clk 0:00:19.5]}
38... Nxd5 {[%clk 0:00:07.4]} 39. Rxd5 {[%clk 0:00:20.4]} 1-0

[Event "Betsys MČR v online bleskovém šachu 2021"]
[Site "Chess.com"]
[Date "2021.04.17"]
[Round "9"]
[White "TheRigos"]
[Black "Clockwork7orange"]
[Result "1-0"]
[WhiteElo "2571"]
[BlackElo "2317"]
[TimeControl "180+1"]
[EndTime "10:30:47 PDT"]
[Termination "Uživatel TheRigos zvítězil na čas"]

1. e4 {[%clk 0:03:00.9]} 1... c5 {[%clk 0:02:59.2]} 2. Nf3 {[%clk 0:03:01.1]}
2... Nc6 {[%clk 0:02:59.5]} 3. d4 {[%clk 0:03:01.6]} 3... cxd4 {[%clk
0:03:00.4]} 4. Nxd4 {[%clk 0:03:02.5]} 4... e5 {[%clk 0:03:00.9]} 5. Nb5 {[%clk
0:03:02.2]} 5... d6 {[%clk 0:03:01]} 6. N1c3 {[%clk 0:03:02.2]} 6... a6 {[%clk
0:03:01.5]} 7. Na3 {[%clk 0:03:02.7]} 7... b5 {[%clk 0:03:02.4]} 8. Nd5 {[%clk
0:03:03.2]} 8... Nge7 {[%clk 0:03:02.7]} 9. c4 {[%clk 0:03:03.4]} 9... Nd4
{[%clk 0:03:02.6]} 10. Be3 {[%clk 0:02:57.3]} 10... Nxd5 {[%clk 0:03:02.3]} 11.
exd5 {[%clk 0:02:56.9]} 11... Nf5 {[%clk 0:03:01]} 12. Bd2 {[%clk 0:02:48.7]}
12... Qh4 {[%clk 0:02:57.5]} 13. Bd3 {[%clk 0:02:22.1]} 13... Be7 {[%clk
0:02:48.6]} 14. g3 {[%clk 0:02:09.4]} 14... Qf6 {[%clk 0:02:03.2]} 15. cxb5
{[%clk 0:02:08.4]} 15... O-O {[%clk 0:02:00.9]} 16. O-O {[%clk 0:02:03.2]} 16...
axb5 {[%clk 0:01:46.6]} 17. Nxb5 {[%clk 0:02:02.5]} 17... Ba6 {[%clk 0:01:43.3]}
18. Bc3 {[%clk 0:01:52.8]} 18... Bxb5 {[%clk 0:01:05.6]} 19. Bxb5 {[%clk
0:01:52.2]} 19... Qg5 {[%clk 0:00:42.2]} 20. Bd2 {[%clk 0:01:42.3]} 20... Qf6
{[%clk 0:00:38]} 21. Bc3 {[%clk 0:01:32.6]} 21... Qg5 {[%clk 0:00:37.3]} 22. Qc1
{[%clk 0:01:23.4]} 22... Qg4 {[%clk 0:00:35]} 23. f3 {[%clk 0:01:06.1]} 23...
Qh3 {[%clk 0:00:31.3]} 24. Qe1 {[%clk 0:01:01.5]} 24... Bg5 {[%clk 0:00:18.3]}
25. Kh1 {[%clk 0:00:49.9]} 25... Ne3 {[%clk 0:00:12]} 26. Rf2 {[%clk 0:00:48]}
26... Nxd5 {[%clk 0:00:11.2]} 27. Bc6 {[%clk 0:00:47.6]} 27... Nxc3 {[%clk
0:00:10.4]} 28. Bxa8 {[%clk 0:00:47.9]} 28... Nb5 {[%clk 0:00:09.6]} 29. Bd5
{[%clk 0:00:42.7]} 29... Nd4 {[%clk 0:00:09.2]} 30. a4 {[%clk 0:00:43.1]} 30...
Rb8 {[%clk 0:00:08.6]} 31. a5 {[%clk 0:00:42.6]} 31... h5 {[%clk 0:00:08.3]} 32.
a6 {[%clk 0:00:42.7]} 32... Nb5 {[%clk 0:00:08.6]} 33. a7 {[%clk 0:00:40.4]}
33... Nxa7 {[%clk 0:00:09.5]} 34. Rxa7 {[%clk 0:00:40.7]} 34... h4 {[%clk
0:00:09.3]} 35. g4 {[%clk 0:00:35.7]} 35... Kh8 {[%clk 0:00:06]} 36. Rxf7 {[%clk
0:00:33.1]} 36... Rc8 {[%clk 0:00:01.7]} 37. Be4 {[%clk 0:00:25.3]} 37... g6
{[%clk 0:00:01.9]} 38. Rc2 {[%clk 0:00:21.4]} 38... Rxc2 {[%clk 0:00:01.9]} 39.
Bxc2 {[%clk 0:00:22.3]} 39... Bf4 {[%clk 0:00:02.4]} 40. Qf2 {[%clk 0:00:20.4]}
40... d5 {[%clk 0:00:01.1]} 41. Qg2 {[%clk 0:00:20.7]} 1-0

[Event "Betsys MČR v online bleskovém šachu 2021"]
[Site "Chess.com"]
[Date "2021.04.17"]
[Round "9"]
[White "Naty139"]
[Black "LiborRojar"]
[Result "1-0"]
[WhiteElo "2232"]
[BlackElo "2070"]
[TimeControl "180+1"]
[EndTime "10:30:47 PDT"]
[Termination "Uživatel Naty139 zvítězil po vzdání soupeře"]

1. e4 {[%clk 0:02:59.6]} 1... e5 {[%clk 0:02:59.5]} 2. Nf3 {[%clk 0:02:59.5]}
2... Nf6 {[%clk 0:02:59.7]} 3. Bc4 {[%clk 0:02:56.1]} 3... Nc6 {[%clk
0:02:58.9]} 4. d3 {[%clk 0:02:55.9]} 4... Bc5 {[%clk 0:02:58.3]} 5. c3 {[%clk
0:02:55.4]} 5... d6 {[%clk 0:02:58.1]} 6. Nbd2 {[%clk 0:02:55.2]} 6... O-O
{[%clk 0:02:55.2]} 7. O-O {[%clk 0:02:54.8]} 7... a6 {[%clk 0:02:51.2]} 8. Bb3
{[%clk 0:02:54.3]} 8... b5 {[%clk 0:02:50]} 9. a4 {[%clk 0:02:51.4]} 9... Be6
{[%clk 0:02:42.1]} 10. Bxe6 {[%clk 0:02:45.9]} 10... fxe6 {[%clk 0:02:42.2]} 11.
axb5 {[%clk 0:02:46.2]} 11... axb5 {[%clk 0:02:42]} 12. Rxa8 {[%clk 0:02:46.8]}
12... Qxa8 {[%clk 0:02:42]} 13. Qb3 {[%clk 0:02:47.7]} 13... Re8 {[%clk
0:02:06.7]} 14. Qxb5 {[%clk 0:02:40.6]} 14... Ne7 {[%clk 0:01:52.4]} 15. d4
{[%clk 0:02:28.7]} 15... exd4 {[%clk 0:01:49]} 16. cxd4 {[%clk 0:02:29.6]} 16...
Bb6 {[%clk 0:01:47.5]} 17. Re1 {[%clk 0:02:13.4]} 17... h6 {[%clk 0:01:45.2]}
18. b3 {[%clk 0:02:03.4]} 18... Ng6 {[%clk 0:01:34.4]} 19. Nc4 {[%clk
0:01:54.1]} 19... Rb8 {[%clk 0:01:19.8]} 20. Nxb6 {[%clk 0:01:46.8]} 20... Rxb6
{[%clk 0:01:19.2]} 21. Qc4 {[%clk 0:01:46.9]} 21... Qc8 {[%clk 0:01:12.9]} 22.
Bd2 {[%clk 0:01:35.2]} 22... Kh7 {[%clk 0:01:07.5]} 23. b4 {[%clk 0:01:30.1]}
23... Ra6 {[%clk 0:01:03.3]} 24. b5 {[%clk 0:01:27.4]} 24... Ra8 {[%clk
0:00:55.7]} 25. e5 {[%clk 0:01:24.8]} 25... Nd5 {[%clk 0:00:45.3]} 26. exd6
{[%clk 0:01:22.8]} 26... cxd6 {[%clk 0:00:45.2]} 27. Qxc8 {[%clk 0:01:22.1]}
27... Rxc8 {[%clk 0:00:45.3]} 28. Rxe6 {[%clk 0:01:21.2]} 28... Ngf4 {[%clk
0:00:37.4]} 29. Bxf4 {[%clk 0:01:18.8]} 29... Nxf4 {[%clk 0:00:36]} 30. Re1
{[%clk 0:01:17.9]} 30... d5 {[%clk 0:00:32.4]} 31. g3 {[%clk 0:01:17.2]} 31...
Nd3 {[%clk 0:00:32]} 32. Rd1 {[%clk 0:01:10.6]} 32... Nb4 {[%clk 0:00:29.5]} 33.
Ne5 {[%clk 0:01:08.9]} 33... Rb8 {[%clk 0:00:28]} 34. Nc6 {[%clk 0:01:06.3]}
34... Rxb5 {[%clk 0:00:24.9]} 35. Rb1 {[%clk 0:01:03.5]} 35... Rb6 {[%clk
0:00:18.5]} 36. Nxb4 {[%clk 0:01:02.1]} 36... Kg6 {[%clk 0:00:18.5]} 37. Rb2
{[%clk 0:01:02]} 37... Kf5 {[%clk 0:00:18.5]} 38. f3 {[%clk 0:01:01.3]} 38... g5
{[%clk 0:00:17.9]} 39. Nd3 {[%clk 0:01:00.5]} 39... Ra6 {[%clk 0:00:16.5]} 40.
Kf2 {[%clk 0:00:59.3]} 40... Ra3 {[%clk 0:00:16.2]} 41. Nb4 {[%clk 0:00:58.3]}
41... Ke6 {[%clk 0:00:13.4]} 42. Re2+ {[%clk 0:00:57.6]} 42... Kd6 {[%clk
0:00:13]} 43. Nc2 {[%clk 0:00:52.5]} 43... Rd3 {[%clk 0:00:10.8]} 44. Ne3 {[%clk
0:00:47.8]} 44... h5 {[%clk 0:00:07.2]} 45. Nf5+ {[%clk 0:00:47.4]} 45... Kd7
{[%clk 0:00:06.6]} 46. h4 {[%clk 0:00:45.5]} 46... gxh4 {[%clk 0:00:06.1]} 47.
gxh4 {[%clk 0:00:46.4]} 47... Rd1 {[%clk 0:00:06.2]} 48. Kg3 {[%clk 0:00:46.3]}
48... Rg1+ {[%clk 0:00:05.5]} 49. Kf4 {[%clk 0:00:46.2]} 49... Rh1 {[%clk
0:00:05.4]} 50. Kg5 {[%clk 0:00:45.7]} 50... Rh2 {[%clk 0:00:03.9]} 51. Rxh2
{[%clk 0:00:44.5]} 1-0

[Event "Betsys MČR v online bleskovém šachu 2021"]
[Site "Chess.com"]
[Date "2021.04.17"]
[Round "9"]
[White "Herracek"]
[Black "Trickov"]
[Result "1/2-1/2"]
[WhiteElo "2606"]
[BlackElo "2404"]
[TimeControl "180+1"]
[EndTime "10:30:48 PDT"]
[Termination "Remíza opakováním pozice"]

1. c4 {[%clk 0:03:00.9]} 1... c6 {[%clk 0:02:59.5]} 2. Nc3 {[%clk 0:03:00.4]}
2... d5 {[%clk 0:02:57.4]} 3. cxd5 {[%clk 0:03:01.3]} 3... cxd5 {[%clk
0:02:56.8]} 4. d4 {[%clk 0:03:01.8]} 4... Nf6 {[%clk 0:02:56]} 5. Bf4 {[%clk
0:03:01.5]} 5... Nc6 {[%clk 0:02:54.4]} 6. e3 {[%clk 0:03:01.8]} 6... a6 {[%clk
0:02:21.7]} 7. Rc1 {[%clk 0:02:59.7]} 7... Bf5 {[%clk 0:02:08.5]} 8. Nf3 {[%clk
0:02:58]} 8... Rc8 {[%clk 0:02:02.3]} 9. Ne5 {[%clk 0:02:57.6]} 9... Nxe5 {[%clk
0:01:50.4]} 10. dxe5 {[%clk 0:02:58.5]} 10... Ne4 {[%clk 0:01:46.6]} 11. Nxe4
{[%clk 0:02:58.5]} 11... Rxc1 {[%clk 0:01:33.8]} 12. Qxc1 {[%clk 0:02:57.4]}
12... Bxe4 {[%clk 0:01:25.6]} 13. e6 {[%clk 0:02:47.8]} 13... Qa5+ {[%clk
0:01:18.1]} 14. Ke2 {[%clk 0:02:47]} 14... fxe6 {[%clk 0:01:13.7]} 15. f3 {[%clk
0:02:46.1]} 15... Bf5 {[%clk 0:01:02]} 16. Be5 {[%clk 0:02:39.1]} 16... Qxa2
{[%clk 0:00:52.5]} 17. Kf2 {[%clk 0:02:37.9]} 17... Qb3 {[%clk 0:00:46]} 18. Be2
{[%clk 0:02:32]} 18... Rg8 {[%clk 0:00:41.3]} 19. g4 {[%clk 0:02:21.6]} 19...
Bd3 {[%clk 0:00:40]} 20. Bd1 {[%clk 0:02:09.1]} 20... Qb4 {[%clk 0:00:35.3]} 21.
Qc8+ {[%clk 0:01:30.7]} 21... Kf7 {[%clk 0:00:35.1]} 22. Bc3 {[%clk 0:01:31.6]}
22... Qb5 {[%clk 0:00:34]} 23. Qc7 {[%clk 0:01:23.6]} 23... g5 {[%clk
0:00:32.4]} 24. h4 {[%clk 0:01:19.4]} 24... Bg7 {[%clk 0:00:28.2]} 25. hxg5
{[%clk 0:01:19.3]} 25... Qc4 {[%clk 0:00:23.6]} 26. Qxb7 {[%clk 0:01:09.7]}
26... Bxc3 {[%clk 0:00:22.8]} 27. bxc3 {[%clk 0:01:10.6]} 27... Rxg5 {[%clk
0:00:21.6]} 28. Be2 {[%clk 0:01:07.5]} 28... Bxe2 {[%clk 0:00:20.7]} 29. Rxh7+
{[%clk 0:01:06.9]} 29... Rg7 {[%clk 0:00:21.1]} 30. Rxg7+ {[%clk 0:01:07.1]}
30... Kxg7 {[%clk 0:00:21.4]} 31. Qxe7+ {[%clk 0:01:07.7]} 31... Kg8 {[%clk
0:00:21.6]} 32. Qxe6+ {[%clk 0:01:07.7]} 32... Kg7 {[%clk 0:00:22]} 33. g5
{[%clk 0:01:04.5]} 33... Bd3 {[%clk 0:00:21.6]} 34. Qf6+ {[%clk 0:01:04]} 34...
Kg8 {[%clk 0:00:21.2]} 35. g6 {[%clk 0:01:04.3]} 35... Qc7 {[%clk 0:00:21.3]}
36. f4 {[%clk 0:00:55.3]} 36... Be4 {[%clk 0:00:20.2]} 37. Kg3 {[%clk
0:00:47.7]} 37... Qg7 {[%clk 0:00:19.7]} 38. Qd8+ {[%clk 0:00:46.7]} 38... Qf8
{[%clk 0:00:19.5]} 39. Qg5 {[%clk 0:00:42.4]} 39... Qf5 {[%clk 0:00:18.9]} 40.
Qd8+ {[%clk 0:00:40.8]} 40... Kg7 {[%clk 0:00:18.5]} 41. Kf2 {[%clk 0:00:31.9]}
41... Qxg6 {[%clk 0:00:17.8]} 42. Qe7+ {[%clk 0:00:31.9]} 42... Kh6 {[%clk
0:00:17.1]} 43. Qh4+ {[%clk 0:00:30.9]} 43... Kg7 {[%clk 0:00:17.2]} 44. Qe7+
{[%clk 0:00:31]} 44... Kh8 {[%clk 0:00:17.3]} 45. Qf8+ {[%clk 0:00:29.7]} 45...
Kh7 {[%clk 0:00:17.3]} 46. Qe7+ {[%clk 0:00:29.7]} 46... Qg7 {[%clk 0:00:17.5]}
47. Qh4+ {[%clk 0:00:28.2]} 47... Kg8 {[%clk 0:00:16.9]} 48. Qd8+ {[%clk
0:00:28]} 48... Kh7 {[%clk 0:00:17]} 49. Qh4+ {[%clk 0:00:27.8]} 49... Kg8
{[%clk 0:00:16.8]} 50. Qd8+ {[%clk 0:00:25.6]} 50... Kh7 {[%clk 0:00:16.9]} 51.
Qh4+ {[%clk 0:00:23.1]} 1/2-1/2

[Event "Betsys MČR v online bleskovém šachu 2021"]
[Site "Chess.com"]
[Date "2021.04.17"]
[Round "9"]
[White "5265"]
[Black "Michelangelo111"]
[Result "1-0"]
[WhiteElo "1667"]
[BlackElo "2099"]
[TimeControl "180+1"]
[EndTime "10:30:48 PDT"]
[Termination "Uživatel 5265 zvítězil na čas"]

1. e4 {[%clk 0:03:00.9]} 1... c5 {[%clk 0:02:58.5]} 2. c3 {[%clk 0:03:00.7]}
2... d5 {[%clk 0:02:56.9]} 3. exd5 {[%clk 0:02:59.2]} 3... Qxd5 {[%clk
0:02:57.8]} 4. d4 {[%clk 0:02:41.6]} 4... cxd4 {[%clk 0:02:58.7]} 5. cxd4 {[%clk
0:02:39.6]} 5... e5 {[%clk 0:02:57.6]} 6. Nf3 {[%clk 0:02:37]} 6... exd4 {[%clk
0:02:56.4]} 7. Qxd4 {[%clk 0:02:33.2]} 7... Qxd4 {[%clk 0:02:55]} 8. Nxd4 {[%clk
0:02:31]} 8... Bc5 {[%clk 0:02:55.9]} 9. Nb5 {[%clk 0:02:26.3]} 9... Na6 {[%clk
0:02:54.8]} 10. N1c3 {[%clk 0:02:23.2]} 10... Nf6 {[%clk 0:02:50]} 11. a3 {[%clk
0:02:19.6]} 11... O-O {[%clk 0:02:47.4]} 12. Be2 {[%clk 0:02:17.4]} 12... Bf5
{[%clk 0:02:38.5]} 13. b4 {[%clk 0:02:14.3]} 13... Bb6 {[%clk 0:02:34.4]} 14.
Bf4 {[%clk 0:02:09.8]} 14... Bg6 {[%clk 0:02:08.6]} 15. O-O {[%clk 0:02:00.1]}
15... Rac8 {[%clk 0:02:05.1]} 16. Rac1 {[%clk 0:01:46.8]} 16... Rfd8 {[%clk
0:01:40]} 17. Na4 {[%clk 0:01:35.9]} 17... Nd5 {[%clk 0:01:23.7]} 18. Bg3 {[%clk
0:01:26.1]} 18... h6 {[%clk 0:01:02.2]} 19. Rxc8 {[%clk 0:01:15.7]} 19... Rxc8
{[%clk 0:01:03.1]} 20. Bf3 {[%clk 0:01:10]} 20... Bd3 {[%clk 0:00:34.1]} 21. Nd6
{[%clk 0:00:30]} 21... Rd8 {[%clk 0:00:20.3]} 22. Rc1 {[%clk 0:00:15.4]} 22...
Bc7 {[%clk 0:00:04.5]} 23. Bxd5 {[%clk 0:00:06.9]} 23... Bxd6 {[%clk 0:00:03.6]}
24. Bxd6 {[%clk 0:00:04.3]} 24... Rxd6 {[%clk 0:00:04.5]} 25. Bxb7 {[%clk
0:00:04.4]} 25... Kh7 {[%clk 0:00:03.1]} 26. Bxa6 {[%clk 0:00:01.9]} 26... Bxa6
{[%clk 0:00:02.5]} 27. Nc5 {[%clk 0:00:02.4]} 27... Bb5 {[%clk 0:00:02]} 28. Re1
{[%clk 0:00:02.2]} 28... Rd2 {[%clk 0:00:01.6]} 29. a4 {[%clk 0:00:02.1]} 29...
Bc4 {[%clk 0:00:01.4]} 30. h3 {[%clk 0:00:02.1]} 30... Rb2 {[%clk 0:00:01.5]}
31. b5 {[%clk 0:00:01.8]} 31... Rb4 {[%clk 0:00:01.4]} 32. Re7 {[%clk
0:00:01.3]} 1-0

[Event "Betsys MČR v online bleskovém šachu 2021"]
[Site "Chess.com"]
[Date "2021.04.17"]
[Round "9"]
[White "CZpeeeter"]
[Black "feela1"]
[Result "1-0"]
[WhiteElo "1700"]
[BlackElo "1354"]
[TimeControl "180+1"]
[EndTime "10:30:48 PDT"]
[Termination "Uživatel CZpeeeter zvítězil na čas"]

1. d4 {[%clk 0:03:00.9]} 1... Nf6 {[%clk 0:02:58.5]} 2. Nf3 {[%clk 0:02:56.3]}
2... e6 {[%clk 0:02:55.5]} 3. e3 {[%clk 0:02:54]} 3... d5 {[%clk 0:02:52.6]} 4.
Bd3 {[%clk 0:02:53.9]} 4... Bd6 {[%clk 0:02:46.2]} 5. O-O {[%clk 0:02:53.7]}
5... Ng4 {[%clk 0:02:43.5]} 6. h3 {[%clk 0:02:51]} 6... Nf6 {[%clk 0:02:42.6]}
7. Nbd2 {[%clk 0:02:50.2]} 7... Nc6 {[%clk 0:02:41]} 8. b3 {[%clk 0:02:49.9]}
8... a6 {[%clk 0:02:37.2]} 9. Bb2 {[%clk 0:02:49.6]} 9... Nb4 {[%clk 0:02:36.3]}
10. Be2 {[%clk 0:02:48.8]} 10... Bd7 {[%clk 0:02:30.3]} 11. a3 {[%clk
0:02:48.3]} 11... Nc6 {[%clk 0:02:28.2]} 12. Bd3 {[%clk 0:02:48.7]} 12... Qe7
{[%clk 0:02:19.3]} 13. Ne5 {[%clk 0:02:48.1]} 13... Bxe5 {[%clk 0:02:11.1]} 14.
dxe5 {[%clk 0:02:48]} 14... Ng8 {[%clk 0:01:56.9]} 15. c4 {[%clk 0:02:46]} 15...
dxc4 {[%clk 0:01:54.2]} 16. Nxc4 {[%clk 0:02:44.6]} 16... O-O-O {[%clk
0:01:51.8]} 17. Rc1 {[%clk 0:02:42.7]} 17... Nh6 {[%clk 0:01:44.6]} 18. Qe2
{[%clk 0:02:39.6]} 18... Nf5 {[%clk 0:01:44]} 19. Be4 {[%clk 0:02:10.9]} 19...
g6 {[%clk 0:01:30.9]} 20. Rfd1 {[%clk 0:02:08.5]} 20... h5 {[%clk 0:01:12.2]}
21. b4 {[%clk 0:01:50.9]} 21... g5 {[%clk 0:01:11]} 22. Nd6+ {[%clk 0:01:32.4]}
22... cxd6 {[%clk 0:00:58.2]} 23. exd6 {[%clk 0:01:31.6]} 23... Nxd6 {[%clk
0:00:56]} 24. Bxh8 {[%clk 0:01:18.9]} 24... Nxe4 {[%clk 0:00:55.4]} 25. Bd4
{[%clk 0:01:17.8]} 25... f5 {[%clk 0:00:50.2]} 26. b5 {[%clk 0:01:17.1]} 26...
axb5 {[%clk 0:00:49.5]} 27. Qxb5 {[%clk 0:01:16.2]} 27... Qd6 {[%clk 0:00:28.7]}
28. Bb6 {[%clk 0:01:08.8]} 28... Qxa3 {[%clk 0:00:25.3]} 29. Bxd8 {[%clk
0:01:06.4]} 29... Kxd8 {[%clk 0:00:23.3]} 30. Qxb7 {[%clk 0:00:51.1]} 30... Nd6
{[%clk 0:00:19.8]} 31. Qb6+ {[%clk 0:00:44.4]} 31... Ke7 {[%clk 0:00:18.8]} 32.
Qc5 {[%clk 0:00:40.2]} 32... Qxc5 {[%clk 0:00:16.6]} 33. Rxc5 {[%clk 0:00:39.7]}
33... Ne4 {[%clk 0:00:15.9]} 34. Rdc1 {[%clk 0:00:35.8]} 34... Ne5 {[%clk
0:00:13.3]} 35. Rxe5 {[%clk 0:00:34.5]} 35... Nd2 {[%clk 0:00:10.5]} 36. Rc7
{[%clk 0:00:29.2]} 36... Nb3 {[%clk 0:00:08]} 37. Rb7 {[%clk 0:00:24.1]} 37...
Ke8 {[%clk 0:00:07.7]} 38. Rxb3 {[%clk 0:00:23]} 38... Ba4 {[%clk 0:00:06.1]}
39. Rb7 {[%clk 0:00:20.6]} 39... Bd7 {[%clk 0:00:01.9]} 40. Ra5 {[%clk
0:00:20.1]} 1-0